bitfinex/quotes_SOLUSD_20240624
["timestamp","ask_amount","ask_price","bid_price","bid_amount"]
[1719266394217,9.77,130.96,130.91,54.77]
[1719266395508,32.65334481,130.99,130.91,54.77]
[1719266395709,9.77,130.97,130.91,54.77]
[1719266396317,17.54014481,130.99,130.91,54.77]
[1719266396619,9.77,130.97,130.91,54.77]
[1719266396923,7.6324,131.02,130.95,9.77]
[1719266397116,9.77,131.04,130.96,6.3863]
[1719266397321,9.77,131.04,131.02,7.6324]
[1719266397499,15.2435,131.11,131.02,17.4024]
[1719266397700,7.6277,131.1,131.03,16.0272]
[1719266397904,15.2435,131.11,131.03,16.0272]
[1719266398105,9.77,131.08,131.03,25.7972]
[1719266398320,15.54274671,131.12,131.03,16.0272]
[1719266398502,7.91574671,131.12,131.04,9.77]
[1719266398708,6.1684824,131.13,131.04,9.77]
[1719266398908,9.77,131.09,131.04,9.77]
[1719266399114,9.77,131.09,131.03,25.7972]
[1719266399317,9.77,131.09,131.04,45.0]
[1719266399623,7.91810392,131.12,131.06,9.77]
[1719266399810,9.77,131.11,131.04,45.0]
[1719266400021,7.6256,131.14,131.04,45.0]
[1719266400320,3.45944558,131.13,131.04,52.6312]
[1719266400520,3.45944558,131.13,131.05,9.77]
[1719266400728,3.45944558,131.13,131.06,61.0037]
[1719266400901,9.77,131.12,131.07,9.77]
[1719266401111,7.6251,131.15,131.08,16.2298]
[1719266401444,9.77,131.14,131.09,9.77]
[1719266401812,17.68687458,131.16,131.1,6.2929]
[1719266402006,17.68687458,131.16,131.1,16.0629]
[1719266402246,9.77,131.15,131.1,6.2929]
[1719266402406,9.77,131.15,131.1,16.0629]
[1719266402934,9.77,131.15,131.1,6.2929]
[1719266403324,9.77,131.15,131.1,16.0629]
[1719266404117,9.77,131.15,131.1,6.2929]
[1719266404747,7.6238,131.17,131.1,6.2929]
[1719266405043,9.77,131.15,131.1,6.2929]
[1719266405214,9.77,131.14,131.1,6.2929]
[1719266405645,7.6244,131.16,131.1,6.2929]
[1719266405934,9.77,131.14,131.1,6.2929]
[1719266406115,9.77,131.15,131.1,6.2929]
[1719266406745,9.77,131.15,131.1,16.0629]
[1719266407942,7.91112679,131.18,131.1,16.0629]
[1719266408142,9.77,131.15,131.1,16.0629]
[1719266408452,7.91112679,131.18,131.1,16.0629]
[1719266408842,7.91112679,131.18,131.1,6.2929]
[1719266409027,9.77,131.15,131.1,16.0629]
[1719266409421,9.77,131.16,131.11,9.77]
[1719266409843,7.6237,131.17,131.11,9.77]
[1719266410049,9.77,131.16,131.11,9.77]
[1719266410545,9.77,131.16,131.1,6.2929]
[1719266410742,9.77,131.16,131.11,9.77]
[1719266411048,9.77,131.17,131.12,9.77]
[1719266411420,7.6224,131.2,131.12,9.77]
[1719266411640,9.77,131.17,131.12,9.77]
[1719266412018,9.77,131.17,131.1,6.2929]
[1719266412219,7.6224,131.2,131.12,9.77]
[1719266412446,9.77,131.18,131.12,9.77]
[1719266412823,9.77,131.18,131.13,9.77]
[1719266413019,7.6224,131.2,131.13,9.77]
[1719266413250,15.53292276,131.21,131.13,9.77]
[1719266413553,20.0,131.2,131.13,9.77]
[1719266413717,9.77,131.18,131.13,9.77]
[1719266414028,9.77,131.18,131.11,7.6271]
[1719266414348,9.77,131.18,131.13,9.77]
[1719266415042,9.77,131.18,131.14,16.0416]
[1719266416657,20.0,131.2,131.14,16.0416]
[1719266416830,9.77,131.18,131.14,16.0416]
[1719266418351,9.77,131.19,131.14,16.0416]
[1719266419649,27.6219,131.2,131.14,16.0416]
[1719266420024,9.77,131.19,131.14,16.0416]
[1719266420754,27.6219,131.2,131.15,6.1086]
[1719266421047,9.77,131.19,131.15,6.1086]
[1719266421441,15.53778926,131.22,131.15,6.1086]
[1719266421647,9.77,131.2,131.15,15.8786]
[1719266421849,15.53778926,131.22,131.15,15.8786]
[1719266422034,9.77,131.2,131.15,6.1086]
[1719266422234,9.77,131.2,131.15,15.8786]
[1719266423758,9.77,131.2,131.15,6.1086]
[1719266424064,9.77,131.2,131.15,15.8786]
[1719266425462,15.53748926,131.22,131.15,15.8786]
[1719266425835,9.77,131.2,131.15,15.8786]
[1719266426140,9.77,131.2,131.15,6.1086]
[1719266426464,9.77,131.2,131.15,15.8786]
[1719266427058,15.53748926,131.22,131.15,15.8786]
[1719266427059,15.53748926,131.22,131.15,6.1086]
[1719266427259,15.53748926,131.22,131.15,15.8786]
[1719266427464,9.77,131.2,131.15,15.8786]
[1719266428468,7.91658926,131.22,131.15,15.8786]
[1719266428756,9.77,131.2,131.15,13.7333]
[1719266428938,9.77,131.2,131.15,23.5033]
[1719266429557,9.77,131.21,131.15,23.5033]
[1719266430669,9.77,131.2,131.15,23.5033]
[1719266431035,7.91658926,131.22,131.15,23.5033]
[1719266431379,9.77,131.2,131.15,23.5033]
[1719266432238,9.77,131.2,131.15,13.7333]
[1719266432761,9.77,131.2,131.15,6.1086]
[1719266433139,9.77,131.2,131.15,13.7334]
[1719266434860,7.91658926,131.22,131.15,13.7334]
[1719266435045,9.77,131.2,131.15,13.7334]
[1719266436161,7.91658926,131.22,131.15,13.7334]
[1719266436370,9.77,131.2,131.15,6.1086]
[1719266436576,9.77,131.19,131.15,13.7334]
[1719266436944,9.77,131.2,131.15,13.7334]
[1719266437953,9.77,131.2,131.15,23.5034]
[1719266438270,9.77,131.2,131.15,6.1086]
[1719266438450,9.77,131.2,131.15,15.8786]
[1719266438963,9.77,131.2,131.15,6.1086]
[1719266439158,9.77,131.2,131.15,15.8786]
[1719266439546,9.77,131.2,131.15,23.503]
[1719266440064,9.77,131.2,131.15,6.1086]
[1719266440242,9.77,131.19,131.15,6.1086]
[1719266440648,7.91658926,131.22,131.15,6.1086]
[1719266440859,9.77,131.2,131.15,6.1086]
[1719266441255,9.77,131.2,131.15,13.733]
[1719266442364,9.77,131.19,131.15,13.733]
[1719266443167,7.91658926,131.22,131.15,13.733]
[1719266443548,9.77,131.19,131.15,13.733]
[1719266444147,9.77,131.18,131.15,13.733]
[1719266445065,9.77,131.16,131.11,41.1383]
[1719266445260,16.4492,131.19,131.12,7.6264]
[1719266445446,9.77,131.15,131.11,48.7653]
[1719266445762,16.4492,131.19,131.12,7.6264]
[1719266446062,9.77,131.16,131.12,7.6264]
[1719266446553,16.4492,131.19,131.12,7.6264]
[1719266446864,9.77,131.15,131.12,7.6264]
[1719266447371,9.77,131.16,131.12,7.6264]
[1719266447871,9.77,131.15,131.12,7.6264]
[1719266448471,9.77,131.16,131.12,7.6264]
[1719266450965,9.77,131.16,131.11,50.9083]
[1719266450966,9.77,131.16,131.11,58.5352]
[1719266451857,16.4492,131.19,131.11,58.5352]
[1719266452065,7.92486701,131.2,131.14,21.4019]
[1719266452269,9.77,131.21,131.16,17.394]
[1719266452465,9.77,131.21,131.16,7.624]
[1719266452767,9.77,131.21,131.16,9.77]
[1719266453346,9.77,131.21,131.15,36.4561]
[1719266454171,137.81537522,131.25,131.15,36.4561]
[1719266454470,9.77,131.21,131.15,36.4561]
[1719266455265,7.6208,131.22,131.14,21.4019]
[1719266455582,2.7643,131.23,131.11,42.0869]
[1719266455583,9.77,131.17,131.11,42.0869]
[1719266455870,7.6213,131.21,131.11,42.0869]
[1719266455871,9.77,131.16,131.11,59.4836]
[1719266456378,9.77,131.16,131.12,7.6265]
[1719266456745,9.77,131.16,131.11,59.4839]
[1719266456943,107.6213,131.21,131.11,59.4839]
[1719266457148,9.77,131.16,131.11,59.4839]
[1719266457451,9.77,131.16,131.11,49.7139]
[1719266457748,14.15457522,131.25,131.16,7.6242]
[1719266457948,9.77,131.22,131.17,17.3931]
[1719266458166,9.77,131.22,131.17,16.3184]
[1719266458354,9.77,131.21,131.17,16.3184]
[1719266458580,9.77,131.22,131.17,16.3184]
[1719266458757,9.77,131.21,131.17,16.3184]
[1719266461164,14.15457522,131.25,131.17,16.3184]
[1719266461370,7.92113971,131.25,131.17,16.3184]
[1719266461558,7.92113971,131.25,131.17,33.712]
[1719266461559,9.77,131.22,131.17,33.712]
[1719266462166,107.91370586,131.26,131.18,17.393]
[1719266462361,9.77,131.23,131.18,17.393]
[1719266462969,9.77,131.24,131.18,17.393]
[1719266463279,100.0,131.26,131.18,17.393]
[1719266463577,9.77,131.24,131.18,17.393]
[1719266464155,100.0,131.26,131.18,17.393]
[1719266464368,100.0,131.26,131.19,9.77]
[1719266464561,9.77,131.25,131.19,9.77]
[1719266464760,100.0,131.26,131.19,9.77]
[1719266464957,3.3704866,131.27,131.19,17.3923]
[1719266465167,9.77,131.24,131.19,7.6223]
[1719266465372,9.77,131.25,131.19,17.3923]
[1719266465580,9.77,131.24,131.19,17.3923]
[1719266466581,9.77,131.24,131.19,9.77]
[1719266466964,9.77,131.24,131.18,7.6229]
[1719266467164,9.77,131.24,131.19,9.77]
[1719266475096,3.3704866,131.27,131.2,6.3171]
[1719266475284,9.77,131.25,131.2,16.0871]
[1719266478591,9.77,131.25,131.21,15.3832]
[1719266478783,3.3704866,131.27,131.23,9.77]
[1719266479394,9.77,131.24,131.2,6.3171]
[1719266479979,3.3704866,131.27,131.2,6.3171]
[1719266480173,9.77,131.24,131.2,6.3171]
[1719266482892,10.9883866,131.27,131.2,6.3171]
[1719266483096,9.77,131.25,131.2,6.3171]
[1719266483390,9.77,131.25,131.18,7.623]
[1719266483391,9.77,131.23,131.17,15.028]
[1719266483691,9.77,131.22,131.17,24.798]
[1719266483916,9.77,131.22,131.17,15.028]
[1719266484096,9.77,131.22,131.17,24.798]
[1719266486797,9.77,131.22,131.17,15.028]
[1719266487099,9.77,131.22,131.17,24.798]
[1719266487401,9.77,131.23,131.17,24.798]
[1719266487771,20.0,131.22,131.17,24.798]
[1719266488487,20.0,131.22,131.17,15.028]
[1719266488691,20.0,131.22,131.17,24.798]
[1719266489300,20.0,131.22,131.18,9.77]
[1719266489506,9.77,131.23,131.18,9.77]
[1719266489802,17.3898,131.24,131.19,9.77]
[1719266490195,20.0,131.23,131.19,9.77]
[1719266491201,27.6203,131.23,131.17,15.028]
[1719266491436,27.6203,131.23,131.18,9.77]
[1719266491584,37.3903,131.23,131.17,24.798]
[1719266492287,37.3903,131.23,131.18,9.77]
[1719266492494,37.3903,131.23,131.17,24.798]
[1719266492688,37.3903,131.23,131.17,15.028]
[1719266492888,37.3903,131.23,131.17,24.798]
[1719266493086,7.6216,131.21,131.17,15.028]
[1719266493290,17.3909,131.22,131.17,24.798]
[1719266494585,17.3909,131.22,131.17,15.028]
[1719266494786,27.6202,131.23,131.17,24.798]
[1719266494986,37.3902,131.23,131.17,15.028]
[1719266495305,27.6202,131.23,131.17,24.798]
[1719266495497,37.3902,131.23,131.17,24.798]
[1719266495985,7.6209,131.22,131.17,15.028]
[1719266496300,7.6209,131.22,131.17,24.798]
[1719266496486,17.3909,131.22,131.17,24.798]
[1719266497104,16.8909,131.22,131.17,24.798]
[1719266497277,7.6216,131.21,131.15,6.5297]
[1719266497478,7.6224,131.2,131.15,16.2997]
[1719266497681,7.6225,131.19,131.15,16.2997]
[1719266498179,7.622,131.2,131.15,6.5297]
[1719266498402,17.392,131.2,131.15,6.5297]
[1719266498596,17.392,131.2,131.15,16.2997]
[1719266501310,7.622,131.2,131.15,16.2997]
[1719266501516,17.392,131.2,131.15,16.2997]
[1719266502317,17.3925,131.19,131.15,6.5297]
[1719266502499,7.6237,131.17,131.15,6.5297]
[1719266502695,9.77,131.18,131.14,16.0512]
[1719266502696,17.3932,131.18,131.14,16.0512]
[1719266502891,7.6237,131.17,131.14,16.0512]
[1719266503115,17.3932,131.18,131.14,16.0512]
[1719266503497,17.26817304,131.23,131.14,16.0512]
[1719266503698,7.6221,131.2,131.14,16.0512]
[1719266504001,9.77,131.19,131.14,16.0512]
[1719266504200,7.6221,131.2,131.14,25.8212]
[1719266504499,9.77,131.19,131.14,25.8212]
[1719266504888,9.77,131.19,131.14,16.0512]
[1719266505222,7.6237,131.17,131.14,16.0512]
[1719266505503,9.77,131.18,131.14,16.0512]
[1719266505707,17.3933,131.18,131.14,16.0512]
[1719266506010,7.6233,131.18,131.14,16.0512]
[1719266507210,17.3933,131.18,131.14,16.0512]
[1719266508180,7.6233,131.18,131.14,16.0512]
[1719266508495,9.77,131.19,131.14,16.0512]
[1719266508696,9.77,131.18,131.14,16.0512]
[1719266509005,9.77,131.17,131.12,16.279]
[1719266509212,9.77,131.18,131.12,16.279]
[1719266510089,7.6232,131.18,131.12,6.509]
[1719266510294,17.3932,131.18,131.12,16.279]
[1719266510917,17.394,131.17,131.12,6.509]
[1719266511405,29.77,131.16,131.12,6.509]
[1719266514627,9.77,131.15,131.12,6.509]
[1719266515423,27.6243,131.16,131.12,6.509]
[1719266515722,9.77,131.15,131.12,6.509]
[1719266517312,7.91961472,131.19,131.13,15.0424]
[1719266517510,47.49862349,131.23,131.13,22.6679]
[1719266517814,9.77,131.21,131.16,9.77]
[1719266518904,9.77,131.2,131.15,9.77]
[1719266520523,9.77,131.2,131.13,22.6679]
[1719266520709,9.77,131.19,131.13,15.0424]
[1719266521109,9.77,131.2,131.13,15.0424]
[1719266522405,9.77,131.2,131.14,9.77]
[1719266522604,9.77,131.19,131.14,9.77]
[1719266523323,7.6215,131.21,131.14,9.77]
[1719266523504,9.77,131.19,131.13,15.0424]
[1719266523705,9.77,131.19,131.14,9.77]
[1719266524123,9.77,131.19,131.13,15.0424]
[1719266524321,9.77,131.19,131.14,9.77]
[1719266524524,7.6215,131.21,131.14,9.77]
[1719266524714,7.6215,131.21,131.13,15.0424]
[1719266524909,20.0,131.2,131.14,9.77]
[1719266525213,9.77,131.19,131.14,9.77]
[1719266527317,29.77,131.2,131.14,9.77]
[1719266528112,9.77,131.19,131.13,15.0424]
[1719266528313,9.77,131.19,131.14,9.77]
[1719266529026,9.77,131.19,131.13,15.0424]
[1719266529410,9.77,131.19,131.14,9.77]
[1719266530132,24.87892856,131.23,131.15,15.8414]
[1719266530333,9.77,131.2,131.15,15.8414]
[1719266530833,9.77,131.21,131.16,9.77]
[1719266531021,9.77,131.21,131.15,15.8414]
[1719266532927,9.77,131.2,131.15,15.8414]
[1719266534531,17.25842856,131.23,131.15,15.8414]
[1719266534728,9.77,131.2,131.15,15.8414]
[1719266535947,9.77,131.2,131.15,6.0714]
[1719266536626,7.6216,131.21,131.15,6.0714]
[1719266536825,9.77,131.2,131.15,6.0714]
[1719266541258,7.6216,131.21,131.15,6.0714]
[1719266541446,9.77,131.19,131.15,6.0714]
[1719266541648,7.6216,131.21,131.15,6.0714]
[1719266541850,9.77,131.19,131.15,6.0714]
[1719266542837,7.6216,131.21,131.15,6.0714]
[1719266543033,9.77,131.19,131.15,6.0714]
[1719266544000,7.6216,131.21,131.15,6.0714]
[1719266544276,9.77,131.2,131.15,6.0714]
[1719266544564,7.6216,131.21,131.15,6.0714]
[1719266544864,9.77,131.2,131.15,6.0714]
[1719266545035,9.77,131.19,131.15,6.0714]
[1719266547344,9.77,131.2,131.15,6.0714]
[1719266550463,7.6216,131.21,131.15,6.0714]
[1719266550681,9.77,131.2,131.15,6.0714]
[1719266550850,17.3916,131.21,131.16,25.3293]
[1719266551850,17.3916,131.21,131.16,15.5593]
[1719266552050,17.3919,131.2,131.16,15.5593]
[1719266552869,7.6219,131.2,131.16,15.5593]
[1719266553071,17.3919,131.2,131.16,15.5593]
[1719266554577,128.1373643,131.25,131.17,6.017]
[1719266554790,120.26755518,131.25,131.17,6.017]
[1719266554953,9.77,131.24,131.17,6.017]
[1719266555149,120.26755518,131.25,131.19,9.77]
[1719266555472,9.77,131.24,131.19,9.77]
[1719266555676,120.26755518,131.25,131.19,9.77]
[1719266556072,9.77,131.24,131.19,9.77]
[1719266557484,120.26755518,131.25,131.19,9.77]
[1719266557687,9.77,131.24,131.19,9.77]
[1719266562189,9.77,131.24,131.19,9.77]
[1719266562889,9.77,131.24,131.17,6.017]
[1719266563066,9.77,131.24,131.19,9.77]
[1719266564801,9.77,131.24,131.17,6.017]
[1719266565091,9.77,131.24,131.19,9.77]
[1719266566592,9.77,131.24,131.17,6.017]
[1719266566784,9.77,131.23,131.18,9.77]
[1719266567883,9.77,131.24,131.19,9.77]
[1719266568290,9.77,131.23,131.18,9.77]
[1719266570301,9.77,131.23,131.17,13.6406]
[1719266570497,9.77,131.23,131.18,9.77]
[1719266573103,9.77,131.24,131.19,9.77]
[1719266574012,120.26755518,131.25,131.19,9.77]
[1719266574203,9.77,131.24,131.19,9.77]
[1719266578799,9.77,131.23,131.18,9.77]
[1719266582393,9.77,131.23,131.17,13.6406]
[1719266582698,130.03755518,131.25,131.19,9.77]
[1719266583902,120.26755518,131.25,131.19,9.77]
[1719266584094,130.03755518,131.25,131.19,9.77]
[1719266584890,130.03755518,131.25,131.18,7.6227]
[1719266585197,130.03755518,131.25,131.19,9.77]
[1719266585399,120.26755518,131.25,131.19,9.77]
[1719266585701,9.77,131.24,131.19,9.77]
[1719266586313,124.6820058,131.25,131.2,15.1873]
[1719266586495,124.6820058,131.25,131.21,9.77]
[1719266587005,134.4520058,131.25,131.18,41.8672]
[1719266587306,134.4520058,131.25,131.2,9.77]
[1719266589781,134.4520058,131.25,131.19,9.77]
[1719266589782,9.77,131.24,131.19,9.77]
[1719266592087,134.4520058,131.25,131.2,9.77]
[1719266592404,124.6820058,131.25,131.2,9.77]
[1719266592588,134.4520058,131.25,131.2,9.77]
[1719266594222,134.4520058,131.25,131.19,9.77]
[1719266595208,124.6820058,131.25,131.19,9.77]
[1719266595515,134.4520058,131.25,131.18,41.8669]
[1719266595695,134.4520058,131.25,131.2,9.77]
[1719266595905,124.6820058,131.25,131.2,9.77]
[1719266596106,134.4520058,131.25,131.2,9.77]
[1719266598920,134.4520058,131.25,131.18,41.8669]
[1719266599105,134.4520058,131.25,131.2,9.77]
[1719266599507,124.6820058,131.25,131.2,9.77]
[1719266602496,124.6820058,131.25,131.18,41.8669]
[1719266602696,124.6820058,131.25,131.2,9.77]
[1719266603316,124.6820058,131.25,131.18,41.8669]
[1719266603491,124.6820058,131.25,131.2,9.77]
[1719266606219,124.6820058,131.25,131.18,41.8669]
[1719266606423,124.6820058,131.25,131.2,9.77]
[1719266607315,124.6820058,131.25,131.18,41.8669]
[1719266607501,124.6820058,131.25,131.2,9.77]
[1719266608815,124.6820058,131.25,131.18,26.6796]
[1719266609012,124.6820058,131.25,131.2,9.77]
[1719266609209,124.6820058,131.25,131.18,26.6796]
[1719266609415,124.6820058,131.25,131.2,9.77]
[1719266609926,124.6820058,131.25,131.18,26.6796]
[1719266610225,124.6820058,131.25,131.2,9.77]
[1719266610399,124.6820058,131.25,131.18,26.6796]
[1719266610601,132.3014058,131.25,131.17,6.017]
[1719266610799,9.77,131.24,131.18,9.77]
[1719266611610,9.77,131.24,131.19,9.77]
[1719266612105,9.77,131.24,131.17,13.6406]
[1719266612424,9.77,131.24,131.19,9.77]
[1719266613922,9.77,131.24,131.18,9.77]
[1719266614313,9.77,131.24,131.16,23.9393]
[1719266614621,9.77,131.23,131.16,7.6241]
[1719266614822,9.77,131.22,131.17,9.77]
[1719266615000,132.3010058,131.25,131.17,9.77]
[1719266615197,9.77,131.22,131.17,9.77]
[1719266615429,9.77,131.23,131.18,9.77]
[1719266615811,9.77,131.24,131.19,9.77]
[1719266616311,29.77,131.23,131.15,33.0966]
[1719266616514,29.77,131.23,131.15,25.472]
[1719266616727,29.77,131.23,131.17,9.77]
[1719266616930,9.77,131.22,131.17,9.77]
[1719266619318,9.77,131.22,131.15,25.472]
[1719266619521,9.77,131.22,131.17,9.77]
[1719266619835,9.77,131.22,131.15,26.85114994]
[1719266620037,25.4715,131.22,131.17,9.77]
[1719266621430,25.4715,131.22,131.15,26.85114994]
[1719266621741,15.7015,131.22,131.18,9.77]
[1719266621934,15.7015,131.22,131.17,9.77]
[1719266625032,33.0922,131.22,131.17,9.77]
[1719266625827,25.4715,131.22,131.17,9.77]
[1719266626028,15.7015,131.22,131.17,9.77]
[1719266631028,9.77,131.24,131.18,9.77]
[1719266631233,124.6820058,131.25,131.21,9.77]
[1719266631941,124.6820058,131.25,131.2,9.77]
[1719266632151,124.6820058,131.25,131.21,9.77]
[1719266635841,124.6820058,131.25,131.2,9.77]
[1719266636850,124.6820058,131.25,131.19,7.6225]
[1719266637032,124.6820058,131.25,131.21,9.77]
[1719266638856,124.6820058,131.25,131.2,9.77]
[1719266639370,124.6820058,131.25,131.19,7.6225]
[1719266639656,124.6820058,131.25,131.21,9.77]
[1719266640960,134.4520058,131.25,131.2,9.77]
[1719266641259,124.6820058,131.25,131.21,9.77]
[1719266641862,134.4520058,131.25,131.2,9.77]
[1719266642731,124.6820058,131.25,131.18,26.6805]
[1719266642934,134.4520058,131.25,131.2,9.77]
[1719266645862,124.6820058,131.25,131.2,9.77]
[1719266646064,134.4520058,131.25,131.2,9.77]
[1719266647856,124.6820058,131.25,131.2,9.77]
[1719266650343,124.6820058,131.25,131.21,9.77]
[1719266653677,124.6820058,131.25,131.19,7.6224]
[1719266655967,124.6820058,131.25,131.2,9.77]
[1719266656167,134.4520058,131.25,131.17,13.6774]
[1719266656341,134.4520058,131.25,131.2,9.77]
[1719266657151,134.4520058,131.25,131.18,7.6228]
[1719266657459,134.4520058,131.25,131.2,9.77]
[1719266657953,124.6820058,131.25,131.2,9.77]
[1719266660971,124.6820058,131.25,131.21,9.77]
[1719266661358,124.6820058,131.25,131.2,9.77]
[1719266662669,19.4186,131.24,131.14,22.97067968]
[1719266662870,9.77,131.21,131.16,9.77]
[1719266663967,7.6203,131.23,131.17,9.77]
[1719266664273,9.77,131.22,131.14,26.6884]
[1719266664449,9.77,131.22,131.17,9.77]
[1719266664974,9.77,131.22,131.14,26.6884]
[1719266665174,9.77,131.22,131.17,9.77]
[1719266668771,27.0384,131.24,131.17,9.77]
[1719266669072,9.77,131.22,131.15,7.6244]
[1719266669379,9.77,131.22,131.17,9.77]
[1719266669856,27.0384,131.24,131.17,9.77]
[1719266670056,9.77,131.22,131.17,9.77]
[1719266670475,9.77,131.22,131.15,7.6244]
[1719266670679,9.77,131.22,131.17,9.77]
[1719266671975,9.77,131.22,131.15,7.6244]
[1719266672175,9.77,131.22,131.17,9.77]
[1719266673177,119.4186,131.24,131.17,9.77]
[1719266673366,19.4186,131.24,131.17,9.77]
[1719266673672,19.4186,131.24,131.16,7.6241]
[1719266674174,19.4186,131.24,131.17,9.77]
[1719266674549,9.77,131.22,131.17,9.77]
[1719266676256,19.4186,131.24,131.17,17.3936]
[1719266676472,20.0,131.23,131.17,7.6236]
[1719266676680,9.77,131.22,131.17,17.3936]
[1719266676975,9.77,131.22,131.17,7.6236]
[1719266677281,29.77,131.23,131.18,9.77]
[1719266678576,9.77,131.22,131.13,19.0639]
[1719266678759,9.77,131.22,131.17,9.77]
[1719266679460,9.77,131.21,131.16,9.77]
[1719266679954,27.6203,131.23,131.16,9.77]
[1719266680378,20.0,131.23,131.16,19.0603]
[1719266680577,9.77,131.22,131.17,9.77]
[1719266680780,20.0,131.23,131.17,9.77]
[1719266681962,20.0,131.23,131.16,28.8303]
[1719266685389,27.0382,131.24,131.17,9.77]
[1719266685686,9.77,131.22,131.17,9.77]
[1719266687266,19.4186,131.24,131.13,19.0642]
[1719266687465,19.4186,131.24,131.16,9.77]
[1719266687777,9.77,131.22,131.16,9.77]
[1719266688482,130.03755518,131.22,131.16,9.77]
[1719266688688,120.26755518,131.22,131.16,9.77]
[1719266688887,130.03755518,131.22,131.16,9.77]
[1719266689265,120.26755518,131.22,131.16,17.3942]
[1719266689466,130.03755518,131.22,131.16,17.3942]
[1719266689692,120.26755518,131.22,131.16,17.3942]
[1719266689876,130.03755518,131.22,131.16,17.3942]
[1719266690077,120.26755518,131.22,131.16,17.3942]
[1719266690278,130.03755518,131.22,131.16,17.3942]
[1719266690491,120.26755518,131.22,131.16,17.3942]
[1719266690787,130.03755518,131.22,131.16,17.3942]
[1719266691488,130.03755518,131.22,131.16,7.6242]
[1719266691795,130.03755518,131.22,131.17,9.77]
[1719266691995,130.03755518,131.22,131.18,9.77]
[1719266691996,120.26755518,131.22,131.18,9.77]
[1719266692173,120.26755518,131.22,131.19,9.77]
[1719266692986,120.26755518,131.22,131.19,17.3922]
[1719266693901,120.26755518,131.22,131.19,7.6222]
[1719266694075,120.26755518,131.22,131.19,17.3922]
[1719266694574,120.26755518,131.22,131.19,9.77]
[1719266694969,120.26755518,131.22,131.19,17.3925]
[1719266697193,120.26755518,131.22,131.19,9.77]
[1719266697792,120.26755518,131.22,131.2,9.77]
[1719266698788,120.26755518,131.22,131.19,9.77]
[1719266699101,120.26755518,131.22,131.19,17.3925]
[1719266699904,120.26755518,131.22,131.17,40.7729]
[1719266700081,120.26755518,131.22,131.19,9.77]
[1719266701910,120.26755518,131.22,131.19,17.3925]
[1719266702393,120.26755518,131.22,131.2,9.77]
[1719266702877,120.26755518,131.22,131.19,17.3925]
[1719266703477,120.26755518,131.22,131.19,19.0553]
[1719266703700,120.26755518,131.22,131.21,17.3913]
[1719266704197,109.58349423,131.22,131.21,17.3913]
[1719266707608,109.58349423,131.22,131.21,7.6213]
[1719266707786,109.58349423,131.22,131.21,17.3913]
[1719266710889,109.58349423,131.22,131.21,7.6213]